[Event "10th Cesme Open-A 2024"]
[Site "Cesme"]
[Date "2024.06.29"]
[Round "8"]
[White "Zakirov, Musa"]
[Black "Tarlabasi, Emirhan"]
[Result "1/2-1/2"]
[ECO "C18"]
[WhiteElo "2112"]
[BlackElo "2303"]
[Annotator "RC"]
[PlyCount "221"]
[EventDate "2024.06.23"]
[EventType "swiss"]
[EventCountry "TUR"]
[SourceTitle "playchess.com"]
[Source "ChessBase"]
[SourceQuality "1"]
[TimeControl "5400+30"]

1. e4 {[%emt 0:01:00]} e6 {[%emt 0:01:00]} 2. d4 {[%emt 0:00:30]} d5 {[%emt 0:00:30]} 3. Nc3 {[%emt 0:00:00]} Bb4 {[%emt 0:00:30]} 4. e5 {[%emt 0:00:00]} c5 {[%emt 0:00:30]} 5. a3 {[%emt 0:00:30]} Bxc3+ {[%emt 0:00:30]} 6. bxc3 {[%emt 0:00:00]} Nc6 {[%emt 0:01:30]} 7. Qg4 {[%emt 0:04:00]} g6 {[%emt 0:00:00]} 8. Qd1 {[%emt 0:04:30]} Qa5 {[%emt 0:05:00]} 9. Bd2 {[%emt 0:00:30]} Qa4 {[%emt 0:01:30]} 10. Rb1 {[%emt 0:17:30]} c4 {[%emt 0:03:30]} 11. Qc1 {[%emt 0:01:30]} h6 {[%emt 0:06:30]} 12. Ne2 {[%emt 0:01:30]} b6 {[%emt 0:03:30]} 13. h4 {[%emt 0:01:30]} Bd7 {[%emt 0:01:30]} 14. Nf4 {[%emt 0:02:30]} O-O-O {[%emt 0:02:30]} 15. g3 {[%emt 0:00:30]} Nge7 {[%emt 0:12:30]} 16. Bh3 {[%emt 0:00:00]} Kc7 {[%emt 0:03:30]} 17. O-O {[%emt 0:00:00]} a5 {[%emt 0:12:30]} 18. Ng2 {[%emt 0:05:30]} h5 {[%emt 0:01:30]} 19. Bg5 {[%emt 0:00:30]} Rb8 {[%emt 0:01:30]} 20. Ne3 {[%emt 0:01:30]} Nc8 {[%emt 0:02:30]} 21. Bf6 {[%emt 0:04:30]} Re8 {[%emt 0:02:30]} 22. Bg2 {[%emt 0:02:30]} N6e7 {[%emt 0:01:30]} 23. Bf3 {[%emt 0:03:30]} Ng8 {[%emt 0:03:30]} 24. Bg5 {[%emt 0:00:00]} Bc6 {[%emt 0:03:30]} 25. Be2 {[%emt 0:01:00]} Nge7 {[%emt 0:07:30]} 26. f3 {[%emt 0:01:30]} Rh8 {[%emt 0:06:34]} 27. g4 {[%emt 0:01:30]} Bd7 {[%emt 0:00:30]} 28. Kg2 {[%emt 0:00:30]} Ng8 {[%emt 0:03:56]} 29. Nd1 {[%emt 0:06:30]} Nce7 {[%emt 0:01:57]} 30. Nb2 {[%emt 0:01:30]} Qc6 {[%emt 0:00:30]} 31. Qf4 {[%emt 0:00:30]} Rf8 {[%emt 0:00:30]} 32. Ra1 {[%emt 0:00:30]} Kb7 {[%emt 0:03:09]} 33. a4 {[%emt 0:01:30]} Qc7 {[%emt 0:00:34]} 34. Ra2 {[%emt 0:02:30]} Rh7 {[%emt 0:01:32]} 35. Nd1 {[%emt 0:06:30]} f6 {[%emt 0:02:04]} 36. exf6 {[%emt 0:00:30]} Qxf4 {[%emt 0:00:30]} 37. Bxf4 {[%emt 0:00:30]} Nxf6 {[%emt 0:00:30]} 38. Bg5 {[%emt 0:00:30]} Nc8 {[%emt 0:00:30]} 39. Ne3 {[%emt 0:00:30]} Nd6 {[%emt 0:00:00]} 40. Bf4 {[%emt 0:09:30]} Nfe8 {[%emt 0:00:00]} 41. Be5 {[%emt 0:07:05]} hxg4 {[%emt 0:00:29]} 42. Nxg4 {[%emt 0:00:07]} Rxh4 {[%emt 0:03:13]} 43. Rb1 {[%emt 0:00:05]} Nc8 {[%emt 0:00:32]} 44. f4 {[%emt 0:05:21]} Ned6 {[%emt 0:01:05]} 45. Bf3 {[%emt 0:00:38]} Bc6 {[%emt 0:01:17]} 46. Ne3 {[%emt 0:04:15]} Rf7 {[%emt 0:01:19]} 47. Kg3 {[%emt 0:01:06]} Rfh7 {[%emt 0:00:34]} 48. Rg1 {[%emt 0:01:08]} Rh2 {[%emt 0:01:30]} 49. Rg2 {[%emt 0:01:47]} Rxg2+ {[%emt 0:00:41]} 50. Bxg2 {[%emt 0:00:53]} Kc7 {[%emt 0:00:31]} 51. Ng4 {[%emt 0:01:37]} Kb7 {[%emt 0:00:09]} 52. Ne3 {[%emt 0:00:53]} Nf5+ {[%emt 0:00:10]} 53. Nxf5 {[%emt 0:00:31]} gxf5 {[%emt 0:00:02]} 54. Ra1 {[%emt 0:00:14]} Ka6 {[%emt 0:00:32]} 55. Bf3 {[%emt 0:00:07]} Na7 {[%emt 0:00:36]} 56. Bd6 {[%emt 0:00:12]} Nc8 {[%emt 0:01:04]} 57. Be5 {[%emt 0:00:04]} Rb7 {[%emt 0:01:07]} 58. Kh4 {[%emt 0:00:10]} b5 {[%emt 0:00:32]} 59. axb5+ {[%emt 0:00:11]} Rxb5 {[%emt 0:00:00]} 60. Kg5 {[%emt 0:00:42]} Rb2 {[%emt 0:00:15]} 61. Kf6 {[%emt 0:00:55]} Bd7 {[%emt 0:00:04]} 62. Bc7 {[%emt 0:00:00]} a4 {[%emt 0:00:46]} 63. Bd1 {[%emt 0:00:05]} Kb7 {[%emt 0:00:00]} 64. Bd8 {[%emt 0:00:34]} Na7 {[%emt 0:01:43]} 65. Be7 {[%emt 0:00:37]} Nb5 {[%emt 0:00:42]} 66. Bb4 {[%emt 0:00:09]} Nc7 {[%emt 0:00:17]} 67. Ke7 {[%emt 0:00:34]} Kc8 {[%emt 0:00:18]} 68. Kd6 {[%emt 0:01:24]} Na6 {[%emt 0:00:30]} 69. Ba3 {[%emt 0:00:30]} Rb6+ {[%emt 0:00:30]} 70. Ke7 {[%emt 0:00:30]} Nc7 {[%emt 0:00:30]} 71. Bb4 {[%emt 0:00:30]} Ra6 {[%emt 0:00:30]} 72. Bh5 {[%emt 0:00:30]} Nb5 {[%emt 0:00:00]} 73. Bf7 {[%emt 0:03:13]} Kc7 {[%emt 0:01:06]} 74. Bg8 {[%emt 0:00:28]} Na7 {[%emt 0:00:37]} 75. Bc5 {[%emt 0:00:46]} Nc8+ {[%emt 0:00:28]} 76. Kf6 {[%emt 0:00:48]} Nd6 {[%emt 0:00:12]} 77. Bb4 {[%emt 0:00:10]} Ne4+ {[%emt 0:00:27]} 78. Ke5 {[%emt 0:00:18]} Nf2 {[%emt 0:00:45]} 79. Kf6 {[%emt 0:00:44]} Ng4+ {[%emt 0:00:16]} 80. Ke7 {[%emt 0:00:00]} Ne3 {[%emt 0:00:04]} 81. Ra2 {[%emt 0:01:22]} Ng2 {[%emt 0:00:05]} 82. Kf6 {[%emt 0:00:00]} Nxf4 {[%emt 0:00:13]} 83. Kg5 {[%emt 0:00:16]} Nh3+ {[%emt 0:00:33]} 84. Kh4 {[%emt 0:00:19]} Nf2 {[%emt 0:00:36]} 85. Kg3 {[%emt 0:00:14]} Ne4+ {[%emt 0:00:06]} 86. Kf4 {[%emt 0:00:03]} Ra8 {[%emt 0:00:46]} 87. Bf7 {[%emt 0:00:10]} Ra6 {[%emt 0:00:36]} 88. Ke5 {[%emt 0:00:16]} Ra8 {[%emt 0:01:52]} 89. Ra1 {[%emt 0:00:32]} Nf2 {[%emt 0:00:30]} 90. Kf6 {[%emt 0:00:39]} Ng4+ {[%emt 0:00:26]} 91. Ke7 {[%emt 0:00:03]} Ra6 {[%emt 0:00:07]} 92. Bh5 {[%emt 0:00:48]} Ne3 {[%emt 0:00:29]} 93. Ra2 {[%emt 0:00:04]} a3 {[%emt 0:01:00]} 94. Rxa3 {[%emt 0:01:31]} Rxa3 {[%emt 0:00:14]} 95. Bxa3 {[%emt 0:00:30]} Nxc2 {[%emt 0:00:13]} 96. Bc1 {[%emt 0:00:11]} Ne1 {[%emt 0:00:20]} 97. Be2 {[%emt 0:00:20]} Nd3 {[%emt 0:01:01]} 98. Bd2 {[%emt 0:00:18]} Kc6 {[%emt 0:00:29]} 99. Bd1 {[%emt 0:00:43]} Nb2 {[%emt 0:00:40]} 100. Bc2 {[%emt 0:01:08]} Kc7 {[%emt 0:00:12]} 101. Bf4+ {[%emt 0:00:28]} Kc8 {[%emt 0:00:09]} 102. Bc1 {[%emt 0:00:36]} Nd3 {[%emt 0:00:39]} 103. Bxd3 {[%emt 0:00:41]} cxd3 {[%emt 0:00:30]} 104. Bf4 {[%emt 0:00:00]} Bb5 {[%emt 0:01:01]} 105. Kxe6 {[%emt 0:00:11]} Bc4 {[%emt 0:00:04]} 106. Kxf5 {[%emt 0:01:36]} Kd7 {[%emt 0:00:14]} 107. Bd2 {[%emt 0:00:52]} Kc6 {[%emt 0:00:08]} 108. Kf4 {[%emt 0:00:00]} Kb5 {[%emt 0:00:32]} 109. Ke3 {[%emt 0:00:30]} Ka4 {[%emt 0:00:30]} 110. Be1 {[%emt 0:00:00]} Kb3 {[%emt 0:00:00]} 111. Kd2 {[%emt 0:00:00]} 1/2-1/2

[Event "10th Cesme Open-A 2024"]
[Site "Cesme"]
[Date "2024.06.29"]
[Round "8"]
[White "Kavri, Yusuf Eren"]
[Black "Danaci, Ege"]
[Result "1-0"]
[ECO "E43"]
[WhiteElo "2059"]
[BlackElo "2005"]
[Annotator "NA RC"]
[PlyCount "89"]
[EventDate "2024.06.23"]
[EventType "swiss"]
[EventCountry "TUR"]
[SourceTitle "playchess.com"]
[Source "ChessBase"]
[SourceQuality "1"]
[TimeControl "5400+30"]

1. d4 {[%emt 0:01:00]} Nf6 {[%emt 0:02:00]} 2. c4 {[%emt 0:00:30]} e6 {[%emt 0:00:30]} 3. Nc3 {[%emt 0:00:30]} Bb4 {[%emt 0:00:00]} 4. Nf3 {[%emt 0:01:30]} b6 {[%emt 0:02:00]} 5. e3 {[%emt 0:00:30]} Bb7 {[%emt 0:00:30]} 6. Bd3 {[%emt 0:00:30]} O-O {[%emt 0:01:30]} 7. O-O {[%emt 0:01:30]} c5 {[%emt 0:06:30]} 8. Na4 {[%emt 0:05:30]} cxd4 {[%emt 0:14:30]} 9. a3 {[%emt 0:00:30]} Be7 {[%emt 0:00:00]} 10. exd4 {[%emt 0:01:30]} d6 {[%emt 0:03:00]} 11. b4 {[%emt 0:01:30]} Nbd7 {[%emt 0:01:30]} 12. Re1 {[%emt 0:09:30]} Rc8 {[%emt 0:05:30]} 13. Nc3 {[%emt 0:04:30]} Re8 {[%emt 0:18:30]} 14. h3 {[%emt 0:08:30]} Qc7 {[%emt 0:02:30]} 15. Bf4 {[%emt 0:01:30]} Bf8 {[%emt 0:01:30]} 16. Bh2 {[%emt 0:12:30]} Qb8 {[%emt 0:01:30]} 17. Bf1 {[%emt 0:05:30]} a6 {[%emt 0:03:30]} 18. Rc1 {[%emt 0:02:30]} Qa8 {[%emt 0:00:00]} 19. Nd2 {[%emt 0:00:30]} e5 {[%emt 0:10:00]} 20. d5 {[%emt 0:02:30]} b5 {[%emt 0:04:30]} 21. cxb5 {[%emt 0:03:30]} axb5 {[%emt 0:00:30]} 22. Nxb5 {[%emt 0:00:30]} Rxc1 {[%emt 0:00:30]} 23. Qxc1 {[%emt 0:00:30]} Rc8 {[%emt 0:00:00]} 24. Qb2 {[%emt 0:09:30]} Bxd5 {[%emt 0:03:52]} 25. Rc1 {[%emt 0:08:29]} Rxc1 {[%emt 0:00:30]} 26. Qxc1 {[%emt 0:00:30]} Nb6 {[%emt 0:00:00]} 27. Qc7 {[%emt 0:01:24]} Qc6 {[%emt 0:00:56]} 28. Qxc6 {[%emt 0:04:00]} Bxc6 {[%emt 0:00:30]} 29. Nc3 {[%emt 0:00:00]} Nfd5 {[%emt 0:00:37]} 30. Nxd5 {[%emt 0:00:44]} Bxd5 {[%emt 0:00:04]} 31. Bb5 {[%emt 0:01:07]} g6 {[%emt 0:00:30]} 32. f3 {[%emt 0:00:30]} Bh6 {[%emt 0:00:30]} 33. Ne4 {[%emt 0:00:30]} Be3+ {[%emt 0:04:26]} 34. Kf1 {[%emt 0:04:31]} Bc4+ {[%emt 0:00:02]} 35. Bxc4 {[%emt 0:01:31]} Nxc4 {[%emt 0:00:01]} 36. Ke2 {[%emt 0:00:43]} Bd4 {[%emt 0:00:42]} 37. Kd3 {[%emt 0:01:50]} Nb2+ {[%emt 0:03:54]} 38. Kc2 {[%emt 0:00:21]} Nc4 {[%emt 0:00:02]} 39. Kb3 {[%emt 0:00:51]} d5 {[%emt 0:00:57]} 40. Bg3 {[%emt 0:04:04]} Ne3 {[%emt 0:07:24]} 41. Nc3 {[%emt 0:00:53]} Nxg2 {[%emt 0:03:27]} 42. Ne2 {[%emt 0:01:12]} Kf8 {[%emt 0:01:43]} 43. Nxd4 {[%emt 0:01:23]} exd4 {[%emt 0:00:30]} 44. b5 {[%emt 0:00:30]} Ke7 {[%emt 0:00:00]} 45. b6 {[%emt 0:00:00]} 1-0

[Event "10th Cesme Open-A 2024"]
[Site "Cesme"]
[Date "2024.06.29"]
[Round "8"]
[White "Uysal, Ugur"]
[Black "Cilek, Bora"]
[Result "0-1"]
[ECO "A30"]
[WhiteElo "2058"]
[BlackElo "2242"]
[Annotator "RC"]
[PlyCount "68"]
[EventDate "2024.06.23"]
[EventType "swiss"]
[EventCountry "TUR"]
[SourceTitle "playchess.com"]
[Source "ChessBase"]
[SourceQuality "1"]
[TimeControl "5400+30"]

1. Nf3 {[%emt 0:01:00]} c5 {[%emt 0:02:00]} 2. c4 {[%emt 0:00:30]} g6 {[%emt 0:01:30]} 3. d4 {[%emt 0:00:00]} cxd4 {[%emt 0:00:30]} 4. Nxd4 {[%emt 0:00:00]} Bg7 {[%emt 0:00:30]} 5. g3 {[%emt 0:00:00]} Qb6 {[%emt 0:00:30]} 6. Nb5 {[%emt 0:02:00]} a6 {[%emt 0:05:30]} 7. Qa4 {[%emt 0:05:30]} Nc6 {[%emt 0:10:30]} 8. Be3 {[%emt 0:15:30]} Qd8 {[%emt 0:13:30]} 9. N1c3 {[%emt 0:17:30]} Rb8 {[%emt 0:13:30]} 10. Nd5 {[%emt 0:08:30]} axb5 {[%emt 0:01:30]} 11. cxb5 {[%emt 0:00:30]} b6 {[%emt 0:01:30]} 12. bxc6 {[%emt 0:04:30]} dxc6 {[%emt 0:00:30]} 13. O-O-O {[%emt 0:10:30]} Bd7 {[%emt 0:02:30]} 14. Nxb6 {[%emt 0:00:30]} Nf6 {[%emt 0:07:30]} 15. Qa7 {[%emt 0:08:30]} Nd5 {[%emt 0:04:30]} 16. Nxd7 {[%emt 0:00:30]} Ra8 {[%emt 0:01:30]} 17. Qb7 {[%emt 0:00:30]} Rxa2 {[%emt 0:00:00]} 18. Rxd5 {[%emt 0:02:30]} cxd5 {[%emt 0:01:00]} 19. Bb6 {[%emt 0:10:43]} Qa8 {[%emt 0:02:30]} 20. Qxa8+ {[%emt 0:00:30]} Rxa8 {[%emt 0:00:30]} 21. Nc5 {[%emt 0:00:30]} O-O {[%emt 0:00:30]} 22. Bg2 {[%emt 0:00:30]} Rfb8 {[%emt 0:00:30]} 23. Nd7 {[%emt 0:00:30]} Rb7 {[%emt 0:00:30]} 24. Bxd5 {[%emt 0:00:30]} Rc8+ {[%emt 0:02:30]} 25. Kb1 {[%emt 0:03:29]} Rxd7 {[%emt 0:00:00]} 26. Be4 {[%emt 0:01:34]} Rb8 {[%emt 0:00:00]} 27. Be3 {[%emt 0:00:49]} Rxb2+ {[%emt 0:00:30]} 28. Kc1 {[%emt 0:00:00]} Rxe2 {[%emt 0:02:30]} 29. Bf3 {[%emt 0:00:12]} Ra2 {[%emt 0:00:00]} 30. Kb1 {[%emt 0:00:19]} Rb2+ {[%emt 0:01:00]} 31. Kc1 {[%emt 0:00:07]} Ra2 {[%emt 0:00:30]} 32. Kb1 {[%emt 0:00:23]} Ra1+ {[%emt 0:00:30]} 33. Kc2 {[%emt 0:00:30]} Rxh1 {[%emt 0:00:30]} 34. Bxh1 {[%emt 0:00:00]} Bd4 {[%emt 0:00:00]} 0-1

[Event "10th Cesme Open-A 2024"]
[Site "Cesme"]
[Date "2024.06.29"]
[Round "8"]
[White "Demirtas, Alper"]
[Black "Ozdemir, Serhan Berat"]
[Result "1-0"]
[ECO "A48"]
[WhiteElo "2057"]
[BlackElo "2225"]
[Annotator "RC"]
[PlyCount "41"]
[EventDate "2024.06.23"]
[EventType "swiss"]
[EventCountry "TUR"]
[SourceTitle "playchess.com"]
[Source "ChessBase"]
[SourceQuality "1"]
[TimeControl "5400+30"]

1. Nf3 {[%emt 0:01:00]} Nf6 {[%emt 0:05:00]} 2. b3 {[%emt 0:00:00]} g6 {[%emt 0:01:30]} 3. Bb2 {[%emt 0:00:00]} Bg7 {[%emt 0:00:30]} 4. d4 {[%emt 0:00:30]} d6 {[%emt 0:00:30]} 5. e3 {[%emt 0:00:30]} O-O {[%emt 0:00:30]} 6. Be2 {[%emt 0:00:00]} e5 {[%emt 0:00:00]} 7. dxe5 {[%emt 0:01:00]} Nfd7 {[%emt 0:00:00]} 8. h4 {[%emt 0:01:30]} Nxe5 {[%emt 0:00:00]} 9. Nc3 {[%emt 0:03:30]} h5 {[%emt 0:01:00]} 10. Ng5 {[%emt 0:11:30]} a5 {[%emt 0:06:30]} 11. Qd2 {[%emt 0:01:30]} Nbd7 {[%emt 0:02:30]} 12. f4 {[%emt 0:08:30]} Ng4 {[%emt 0:00:30]} 13. Bxg4 {[%emt 0:00:30]} hxg4 {[%emt 0:00:30]} 14. h5 {[%emt 0:00:30]} gxh5 {[%emt 0:00:30]} 15. Qd3 {[%emt 0:00:30]} Re8 {[%emt 0:07:30]} 16. Qh7+ {[%emt 0:17:30]} Kf8 {[%emt 0:00:30]} 17. Qxh5 {[%emt 0:01:30]} Rxe3+ {[%emt 0:06:30]} 18. Kd2 {[%emt 0:00:30]} Qe8 {[%emt 0:00:00]} 19. Qh8+ {[%emt 0:04:30]} Bxh8 {[%emt 0:00:00]} 20. Rxh8+ {[%emt 0:00:30]} Kg7 {[%emt 0:04:30]} 21. Nce4+ {[%emt 0:00:30]} 1-0

[Event "10th Cesme Open-A 2024"]
[Site "Cesme"]
[Date "2024.06.29"]
[Round "8"]
[White "Demirbag, Alihan"]
[Black "Isgenderova, Hayale"]
[Result "1-0"]
[ECO "C01"]
[WhiteElo "2055"]
[BlackElo "2103"]
[Annotator "RC"]
[PlyCount "165"]
[EventDate "2024.06.23"]
[EventType "swiss"]
[EventCountry "TUR"]
[SourceTitle "playchess.com"]
[Source "ChessBase"]
[SourceQuality "1"]
[TimeControl "5400+30"]

1. e4 {[%emt 0:01:00]} e6 {[%emt 0:01:00]} 2. d4 {[%emt 0:00:30]} d5 {[%emt 0:00:30]} 3. exd5 {[%emt 0:00:30]} exd5 {[%emt 0:00:30]} 4. Nc3 {[%emt 0:00:00]} Nf6 {[%emt 0:00:00]} 5. Bf4 {[%emt 0:00:00]} Bd6 {[%emt 0:04:00]} 6. Qd2 {[%emt 0:00:00]} O-O {[%emt 0:01:30]} 7. O-O-O {[%emt 0:00:00]} Ne4 {[%emt 0:00:30]} 8. Nxe4 {[%emt 0:00:30]} dxe4 {[%emt 0:03:30]} 9. f3 {[%emt 0:06:30]} Bxf4 {[%emt 0:07:30]} 10. Qxf4 {[%emt 0:01:30]} Qd5 {[%emt 0:06:30]} 11. Kb1 {[%emt 0:00:30]} Re8 {[%emt 0:00:30]} 12. fxe4 {[%emt 0:00:30]} Qxe4 {[%emt 0:00:30]} 13. Qxe4 {[%emt 0:00:30]} Rxe4 {[%emt 0:00:30]} 14. Nf3 {[%emt 0:00:30]} Bg4 {[%emt 0:00:30]} 15. Bd3 {[%emt 0:00:30]} Rf4 {[%emt 0:00:30]} 16. Rde1 {[%emt 0:00:30]} Nc6 {[%emt 0:00:30]} 17. Re4 {[%emt 0:00:30]} Rxe4 {[%emt 0:00:30]} 18. Bxe4 {[%emt 0:00:30]} Re8 {[%emt 0:00:30]} 19. Bxc6 {[%emt 0:00:30]} bxc6 {[%emt 0:00:30]} 20. Re1 {[%emt 0:00:30]} Rxe1+ {[%emt 0:00:30]} 21. Nxe1 {[%emt 0:00:30]} f6 {[%emt 0:00:30]} 22. Nd3 {[%emt 0:00:30]} Kf7 {[%emt 0:00:30]} 23. Nb4 {[%emt 0:00:30]} Bd7 {[%emt 0:00:30]} 24. c4 {[%emt 0:00:30]} Bf5+ {[%emt 0:00:30]} 25. Kc1 {[%emt 0:00:30]} Be4 {[%emt 0:00:30]} 26. g3 {[%emt 0:00:30]} Ke6 {[%emt 0:00:30]} 27. Kd2 {[%emt 1:02:30]} Kd6 {[%emt 0:46:30]} 28. Na6 {[%emt 0:00:30]} Bb1 {[%emt 0:00:30]} 29. a3 {[%emt 0:00:30]} f5 {[%emt 0:00:30]} 30. Ke3 {[%emt 0:00:30]} Be4 {[%emt 0:00:30]} 31. g4 {[%emt 0:00:30]} g6 {[%emt 0:00:30]} 32. g5 {[%emt 0:00:30]} Bg2 {[%emt 0:00:30]} 33. h4 {[%emt 0:00:30]} Be4 {[%emt 0:00:30]} 34. Nc5 {[%emt 0:00:30]} Bb1 {[%emt 0:11:01]} 35. Na6 {[%emt 0:14:13]} Be4 {[%emt 0:00:40]} 36. c5+ {[%emt 0:02:19]} Kd7 {[%emt 0:00:30]} 37. Kf4 {[%emt 0:00:32]} Bd3 {[%emt 0:07:40]} 38. Nb8+ {[%emt 0:00:53]} Ke6 {[%emt 0:00:07]} 39. Nxc6 {[%emt 0:00:01]} Kd5 {[%emt 0:00:03]} 40. Nxa7 {[%emt 0:02:01]} Kxd4 {[%emt 0:00:11]} 41. b4 {[%emt 0:03:37]} Kc4 {[%emt 0:00:19]} 42. Nc6 {[%emt 0:01:51]} Kb3 {[%emt 0:01:03]} 43. Nd4+ {[%emt 0:01:13]} Kxa3 {[%emt 0:00:30]} 44. b5 {[%emt 0:00:00]} Kb4 {[%emt 0:00:45]} 45. b6 {[%emt 0:00:24]} cxb6 {[%emt 0:00:30]} 46. cxb6 {[%emt 0:00:00]} Ba6 {[%emt 0:01:44]} 47. Ke5 {[%emt 0:00:59]} Kc5 {[%emt 0:00:49]} 48. Ne6+ {[%emt 0:01:05]} Kxb6 {[%emt 0:00:08]} 49. Nf8 {[%emt 0:00:11]} Be2 {[%emt 0:01:56]} 50. Nxh7 {[%emt 0:00:19]} Kc7 {[%emt 0:00:06]} 51. Nf8 {[%emt 0:00:39]} Bh5 {[%emt 0:03:47]} 52. Ne6+ {[%emt 0:00:02]} Kd7 {[%emt 0:00:40]} 53. Nf4 {[%emt 0:00:05]} Bg4 {[%emt 0:00:46]} 54. Nxg6 {[%emt 0:00:30]} Ke8 {[%emt 0:00:12]} 55. Kf6 {[%emt 0:01:13]} Bd1 {[%emt 0:00:11]} 56. Kxf5 {[%emt 0:00:40]} Kf7 {[%emt 0:00:04]} 57. Nf4 {[%emt 0:00:43]} Bc2+ {[%emt 0:00:35]} 58. Kg4 {[%emt 0:00:30]} Bd1+ {[%emt 0:00:00]} 59. Kf5 {[%emt 0:00:17]} Bc2+ {[%emt 0:00:04]} 60. Ke5 {[%emt 0:00:00]} Bd1 {[%emt 0:00:00]} 61. Kd4 {[%emt 0:01:16]} Ke7 {[%emt 0:01:30]} 62. Ke3 {[%emt 0:00:24]} Kd6 {[%emt 0:00:55]} 63. Kd4 {[%emt 0:00:59]} Ke7 {[%emt 0:00:06]} 64. Ke4 {[%emt 0:00:16]} Kf7 {[%emt 0:00:36]} 65. Kf5 {[%emt 0:00:07]} Bc2+ {[%emt 0:00:34]} 66. Kg4 {[%emt 0:00:30]} Bd1+ {[%emt 0:00:30]} 67. Kg3 {[%emt 0:00:00]} Kg7 {[%emt 0:00:00]} 68. h5 {[%emt 0:00:11]} Kf7 {[%emt 0:00:10]} 69. Kh4 {[%emt 0:00:30]} Kg7 {[%emt 0:00:30]} 70. Ng2 {[%emt 0:00:30]} Bc2 {[%emt 0:00:30]} 71. Ne3 {[%emt 0:00:30]} Bd3 {[%emt 0:00:30]} 72. Kg4 {[%emt 0:00:30]} Be2+ {[%emt 0:00:30]} 73. Kh4 {[%emt 0:00:30]} Bd3 {[%emt 0:00:30]} 74. Ng4 {[%emt 0:00:30]} Bc2 {[%emt 0:00:30]} 75. Kg3 {[%emt 0:00:41]} Bd3 {[%emt 0:00:00]} 76. Kf4 {[%emt 0:00:28]} Bc2 {[%emt 0:00:25]} 77. Ne3 {[%emt 0:01:10]} Bd3 {[%emt 0:00:04]} 78. Nf5+ {[%emt 0:00:01]} Kf7 {[%emt 0:00:23]} 79. Ke5 {[%emt 0:00:23]} Be2 {[%emt 0:00:43]} 80. g6+ {[%emt 0:00:26]} Kg8 {[%emt 0:00:30]} 81. Kf6 {[%emt 0:00:55]} Bc4 {[%emt 0:00:25]} 82. h6 {[%emt 0:00:34]} Kh8 {[%emt 0:01:24]} 83. Nd6 {[%emt 0:00:43]} 1-0

[Event "10th Cesme Open-A 2024"]
[Site "Cesme"]
[Date "2024.06.29"]
[Round "8"]
[White "Cakiroglu, Metin"]
[Black "Maruflu, Enes Yusuf"]
[Result "0-1"]
[ECO "B22"]
[WhiteElo "2039"]
[BlackElo "2141"]
[Annotator "RC"]
[PlyCount "92"]
[EventDate "2024.06.23"]
[EventType "swiss"]
[EventCountry "TUR"]
[SourceTitle "playchess.com"]
[Source "ChessBase"]
[SourceQuality "1"]
[TimeControl "5400+30"]

1. e4 {[%emt 0:02:00]} c5 {[%emt 0:01:00]} 2. c3 {[%emt 0:00:30]} d5 {[%emt 0:00:30]} 3. exd5 {[%emt 0:00:30]} Nf6 {[%emt 0:00:30]} 4. Qa4+ {[%emt 0:00:30]} Nbd7 {[%emt 0:00:30]} 5. c4 {[%emt 0:00:30]} b5 {[%emt 0:00:30]} 6. Qxb5 {[%emt 0:00:30]} Rb8 {[%emt 0:00:30]} 7. Qa4 {[%emt 0:00:30]} e6 {[%emt 0:00:30]} 8. Nc3 {[%emt 0:00:30]} Bb7 {[%emt 0:00:30]} 9. Nf3 {[%emt 0:00:30]} exd5 {[%emt 0:00:30]} 10. cxd5 {[%emt 0:00:30]} Bd6 {[%emt 0:00:30]} 11. Be2 {[%emt 0:00:30]} O-O {[%emt 0:00:30]} 12. O-O {[%emt 0:00:30]} Nxd5 {[%emt 0:00:30]} 13. d4 {[%emt 0:00:30]} Re8 {[%emt 0:00:30]} 14. Bg5 {[%emt 0:00:30]} Qc7 {[%emt 0:00:30]} 15. Nb5 {[%emt 0:00:30]} Qc6 {[%emt 0:00:30]} 16. Qd1 {[%emt 0:00:30]} Bf4 {[%emt 0:00:30]} 17. Bh4 {[%emt 0:00:30]} a6 {[%emt 0:00:30]} 18. Nc3 {[%emt 0:00:30]} Ba8 {[%emt 0:00:30]} 19. Nxd5 {[%emt 0:00:30]} Qxd5 {[%emt 0:00:30]} 20. dxc5 {[%emt 0:00:30]} Nxc5 {[%emt 0:00:30]} 21. Qxd5 {[%emt 0:00:30]} Bxd5 {[%emt 0:00:30]} 22. Rfe1 {[%emt 0:00:30]} g5 {[%emt 0:00:30]} 23. Bxg5 {[%emt 0:00:30]} Bxg5 {[%emt 0:00:30]} 24. Nxg5 {[%emt 0:00:30]} Rxb2 {[%emt 0:00:30]} 25. Bf1 {[%emt 0:00:30]} Rxe1 {[%emt 0:00:30]} 26. Rxe1 {[%emt 0:00:30]} Rxa2 {[%emt 0:00:30]} 27. Rc1 {[%emt 0:00:30]} Nb3 {[%emt 0:00:30]} 28. Rd1 {[%emt 0:00:30]} Nd2 {[%emt 1:13:23]} 29. Bd3 {[%emt 1:07:30]} h6 {[%emt 0:00:30]} 30. Nh3 {[%emt 0:00:30]} a5 {[%emt 0:00:30]} 31. Nf4 {[%emt 0:00:30]} Bb3 {[%emt 0:00:30]} 32. Rc1 {[%emt 0:00:30]} Kf8 {[%emt 0:00:30]} 33. h4 {[%emt 0:00:30]} a4 {[%emt 0:00:30]} 34. Rc8+ {[%emt 0:00:30]} Ke7 {[%emt 0:00:30]} 35. Ra8 {[%emt 0:00:30]} a3 {[%emt 0:00:30]} 36. Ne2 {[%emt 0:00:30]} Ra1+ {[%emt 0:00:30]} 37. Kh2 {[%emt 0:00:30]} Rd1 {[%emt 0:00:30]} 38. Nc3 {[%emt 0:00:30]} Nf3+ {[%emt 0:00:30]} 39. gxf3 {[%emt 0:00:30]} Rxd3 {[%emt 0:00:30]} 40. Ne4 {[%emt 0:00:30]} Bd5 {[%emt 0:00:30]} 41. Ra7+ {[%emt 0:00:30]} Kf8 {[%emt 0:00:30]} 42. Nc5 {[%emt 0:00:30]} Rxf3 {[%emt 0:00:30]} 43. Nd7+ {[%emt 0:00:30]} Kg7 {[%emt 0:00:30]} 44. Nb6 {[%emt 0:00:30]} Be6 {[%emt 0:00:30]} 45. Na4 {[%emt 0:00:30]} Rxf2+ {[%emt 0:00:30]} 46. Kg3 {[%emt 0:00:30]} Rc2 {[%emt 0:00:30]} 0-1